bitfinex-derivatives/quotes_BTCF0:USTF0_20250121
["timestamp","ask_amount","ask_price","bid_price","bid_amount"]
[1737498730485,0.3055412,106330.0,106320.0,0.22556058]
[1737498731088,0.3055412,106330.0,106320.0,0.00054266]
[1737498731886,0.3055412,106330.0,106320.0,0.00254266]
[1737498732399,0.3055412,106330.0,106320.0,0.00354266]
[1737498732587,0.3055412,106330.0,106320.0,0.00154266]
[1737498732790,0.3055412,106330.0,106320.0,0.00054266]
[1737498732985,0.3055412,106330.0,106320.0,0.00154266]
[1737498735193,0.47376161,106330.0,106320.0,0.00154266]
[1737498735787,0.48230547,106330.0,106320.0,0.00154266]
[1737498737393,0.48230547,106330.0,106320.0,1.50154266]
[1737498738094,0.62228372,106330.0,106320.0,1.50154266]
[1737498740599,0.62228372,106330.0,106320.0,0.00154266]
[1737498744201,0.50480652,106330.0,106320.0,0.00154266]
[1737498744495,0.50480652,106330.0,106320.0,0.63530086]
[1737498744699,0.49626266,106330.0,106320.0,0.66660086]
[1737498745201,0.30819866,106330.0,106320.0,0.66660086]
[1737498746699,0.49626266,106330.0,106320.0,2.16660086]
[1737498746996,0.30819866,106330.0,106320.0,2.17660086]
[1737498747202,0.18819662,106340.0,106320.0,2.46744831]
[1737498747499,0.00014062,106340.0,106330.0,0.6665412]
[1737498748001,0.00014062,106340.0,106330.0,0.71154005]
[1737498748403,0.00114062,106340.0,106330.0,0.71154005]
[1737498748804,0.00114062,106340.0,106330.0,0.6665412]
[1737498749100,0.00014062,106340.0,106330.0,0.6665412]
[1737498749305,0.00314062,106340.0,106330.0,0.6665412]
[1737498749696,0.00114062,106340.0,106330.0,0.6665412]
[1737498749895,0.00314062,106340.0,106330.0,0.6665412]
[1737498751504,0.00314062,106340.0,106330.0,0.71150903]
[1737498752204,0.00314062,106340.0,106330.0,2.21150903]
[1737498752807,0.00314062,106340.0,106330.0,2.27150903]
[1737498754706,0.42716749,106360.0,106330.0,2.08344503]
[1737498754907,0.42716749,106360.0,106350.0,0.9945052]
[1737498755206,0.42716749,106360.0,106350.0,0.909628]
[1737498755903,0.24515149,106360.0,106350.0,0.909628]
[1737498756106,0.24715149,106360.0,106350.0,0.940628]
[1737498756507,0.24715149,106360.0,106350.0,0.941628]
[1737498756806,0.21425149,106360.0,106350.0,1.0265052]
[1737498756998,0.20532817,106360.0,106350.0,1.0265052]
[1737498757395,0.20332817,106360.0,106350.0,1.0265052]
[1737498757596,0.20532817,106360.0,106350.0,2.5608052]
[1737498758000,0.20532817,106360.0,106350.0,2.6708052]
[1737498759906,0.20391684,106360.0,106350.0,2.7556824]
[1737498760115,0.008,106360.0,106350.0,2.6708052]
[1737498760303,0.008,106360.0,106350.0,2.7556824]
[1737498760503,0.19605746,106370.0,106360.0,0.188012]
[1737498760814,0.19605746,106370.0,106360.0,0.7436892]
[1737498761815,0.19805746,106370.0,106360.0,0.7436892]
[1737498762011,0.20305746,106370.0,106360.0,0.7436892]
[1737498762608,0.20291684,106370.0,106360.0,0.83770508]
[1737498762912,0.00141052,106390.0,106380.0,0.187976]
[1737498763111,0.22845714,106400.0,106390.0,0.187959]
[1737498763316,0.22845714,106400.0,106390.0,0.6336362]
[1737498763814,0.19625714,106400.0,106390.0,0.6336362]
[1737498764208,0.11176055,106400.0,106390.0,0.6806252]
[1737498764817,0.11376055,106400.0,106390.0,0.6806252]
[1737498765317,0.00014062,106410.0,106400.0,0.187941]
[1737498765617,0.00014062,106410.0,106400.0,0.7536182]
[1737498766118,0.22886721,106430.0,106420.0,0.187906]
[1737498766307,0.22886721,106430.0,106420.0,0.9943832]
[1737498766503,0.19766721,106430.0,106420.0,0.9943832]
[1737498766713,0.19766721,106430.0,106420.0,2.4943832]
[1737498767517,0.19866721,106430.0,106420.0,2.4943832]
[1737498768403,0.20266721,106430.0,106420.0,2.4943832]
[1737498769011,0.00641007,106430.0,106420.0,2.4943832]
[1737498770322,0.00641007,106430.0,106420.0,2.50315352]
[1737498773421,0.00641007,106430.0,106420.0,2.60315352]
[1737498778929,0.005,106430.0,106420.0,2.60315352]
[1737498780927,0.005,106430.0,106420.0,2.51827632]
[1737498781226,0.192888,106430.0,106420.0,0.55747632]
[1737498781420,0.192888,106430.0,106420.0,0.19667632]
[1737498781624,0.553688,106430.0,106420.0,1.636106]
[1737498781818,0.187906,106420.0,106410.0,0.00014062]
[1737498782121,0.187923,106410.0,106400.0,0.54873]
[1737498782323,0.2728002,106410.0,106400.0,1.5]
[1737498782521,0.3197812,106410.0,106400.0,1.5]
[1737498782717,0.6805812,106410.0,106400.0,1.5]
[1737498783119,0.8775354,106410.0,106390.0,0.00014062]
[1737498783321,0.187959,106390.0,106380.0,0.11652982]
[1737498783627,0.187976,106380.0,106370.0,2.19359635]
[1737498783835,0.187976,106380.0,106370.0,2.00560235]
[1737498784126,0.548776,106380.0,106370.0,2.00560235]
[1737498784920,0.6336532,106380.0,106370.0,2.00560235]
[1737498785532,0.6336532,106380.0,106370.0,0.50560235]
[1737498785830,0.6376532,106380.0,106370.0,0.50560235]
[1737498786031,0.4496772,106380.0,106360.0,1.68814562]
[1737498786228,0.6336712,106370.0,106360.0,1.68814562]
[1737498786524,0.6336712,106370.0,106360.0,1.50014062]
[1737498786833,0.7295712,106370.0,106360.0,0.00014062]
[1737498787517,0.7315712,106370.0,106360.0,0.00014062]
[1737498787729,0.5435772,106370.0,106340.0,0.18811044]
[1737498788027,0.6337062,106350.0,106340.0,6.644e-05]
[1737498788229,0.6337062,106350.0,106330.0,1.5]
[1737498788230,0.8064772,106350.0,106330.0,1.5]
[1737498788534,0.6663242,106340.0,106330.0,1.5]
[1737498788724,0.4782772,106340.0,106320.0,0.41309192]
[1737498788922,0.2729422,106330.0,106320.0,0.22515854]
[1737498789229,0.188065,106330.0,106320.0,1.72515854]
[1737498789433,0.581457,106340.0,106320.0,1.72515854]
[1737498789622,0.581457,106340.0,106330.0,0.191065]
[1737498789928,0.5901396,106340.0,106330.0,0.194065]
[1737498790330,0.6750168,106340.0,106330.0,0.194065]
[1737498790631,0.0086826,106340.0,106330.0,0.551865]
[1737498790820,0.27305582,106350.0,106330.0,0.191065]
[1737498791023,0.0848772,106340.0,106330.0,0.188065]
[1737498791521,0.2729242,106340.0,106330.0,0.188065]
[1737498791715,0.2729242,106340.0,106330.0,0.554865]
[1737498791922,0.2729242,106340.0,106330.0,0.194065]
[1737498792429,0.2729242,106340.0,106330.0,0.554865]
[1737498792621,0.0848772,106340.0,106330.0,0.554865]
[1737498792823,0.2729242,106340.0,106330.0,0.009]
[1737498793521,0.6337242,106340.0,106330.0,0.009]
[1737498795126,0.188065,106330.0,106320.0,0.18822262]
[1737498795429,0.6337422,106330.0,106320.0,0.18822262]
[1737498796125,0.548865,106330.0,106320.0,0.18822262]
[1737498796330,0.548865,106330.0,106320.0,0.20122262]
[1737498796632,0.2729302,106340.0,106330.0,0.188065]
[1737498796833,0.0848772,106340.0,106330.0,0.548865]
[1737498797229,0.12497724,106350.0,106330.0,0.548865]
[1737498797430,0.31300924,106350.0,106340.0,0.188047]
[1737498798129,0.00014062,106350.0,106340.0,0.188047]
[1737498798328,0.00014062,106350.0,106340.0,0.548847]
[1737498798838,0.00014062,106350.0,106340.0,0.549847]
[1737498799732,0.2728772,106370.0,106340.0,2.0466772]
[1737498799935,0.188,106370.0,106360.0,0.548812]
[1737498800133,0.19710695,106370.0,106360.0,0.548812]
[1737498800927,0.19910695,106370.0,106360.0,0.548812]
[1737498801131,0.28398415,106370.0,106360.0,0.548812]
[1737498801525,0.28798415,106370.0,106360.0,0.548812]
[1737498801935,0.01510695,106370.0,106360.0,0.909612]
[1737498802135,0.006,106370.0,106360.0,0.909612]
[1737498803435,0.004,106370.0,106360.0,0.909612]
[1737498803637,0.006,106370.0,106360.0,0.909612]
[1737498804636,0.003,106370.0,106360.0,0.909612]
[1737498805224,0.003,106370.0,106360.0,2.409612]
[1737498805430,0.002,106370.0,106360.0,2.409612]
[1737498805634,0.002,106370.0,106360.0,2.4944892]
[1737498806734,0.00014062,106380.0,106360.0,2.3064772]
[1737498806938,0.18811662,106380.0,106370.0,0.548794]
[1737498808137,0.18911662,106380.0,106370.0,0.187994]
[1737498808332,0.00114062,106380.0,106360.0,1.9466772]
[1737498808640,0.18913362,106380.0,106370.0,0.548794]
[1737498809231,0.19013362,106380.0,106370.0,0.548794]
[1737498810332,0.19011662,106380.0,106370.0,0.3608]
[1737498810632,0.49481282,106380.0,106360.0,0.549356]
[1737498810830,0.187994,106370.0,106360.0,0.548796]
[1737498811033,0.188012,106360.0,106350.0,0.65802424]
[1737498811233,0.188012,106360.0,106350.0,2.15915962]
[1737498811438,0.188012,106360.0,106350.0,1.79835962]
[1737498812035,0.188012,106360.0,106350.0,2.15915962]
[1737498812340,0.3608,106370.0,106350.0,1.97714062]
[1737498812541,0.188012,106360.0,106350.0,2.16516162]
[1737498813335,0.188012,106360.0,106350.0,2.16716162]
[1737498813738,0.188012,106360.0,106350.0,2.16116162]
[1737498814033,0.188012,106360.0,106350.0,1.61434062]
[1737498814234,0.188012,106360.0,106350.0,0.11434062]
[1737498814442,0.2728892,106360.0,106350.0,0.11734062]
[1737498814642,0.548812,106360.0,106350.0,1.61734062]
[1737498814837,0.188012,106360.0,106350.0,1.97814062]
[1737498815241,0.188012,106360.0,106350.0,2.16616962]
[1737498816039,0.188012,106360.0,106350.0,2.16516962]
[1737498816842,0.188012,106360.0,106350.0,2.16216962]
[1737498817041,0.1970642,106360.0,106350.0,2.16216962]
[1737498817239,0.6427414,106360.0,106350.0,1.50314062]
[1737498817738,0.6427414,106360.0,106350.0,0.00314062]
[1737498818142,0.2819414,106360.0,106350.0,1.50314062]
[1737498819334,0.2819414,106360.0,106350.0,1.86394062]
[1737498819534,0.2819414,106360.0,106350.0,1.50314062]
[1737498820334,0.6427414,106360.0,106350.0,1.50314062]
[1737498820942,0.2819414,106360.0,106350.0,1.50314062]
[1737498821240,0.6427414,106360.0,106350.0,1.50314062]
[1737498821444,0.2819414,106360.0,106350.0,1.50314062]
[1737498821948,0.6427414,106360.0,106350.0,1.50314062]
[1737498822251,0.6734414,106360.0,106350.0,0.00314062]
[1737498824940,0.8126149,106360.0,106350.0,0.00314062]
[1737498828541,0.84089586,106360.0,106350.0,0.00314062]
[1737498832945,0.6734414,106360.0,106350.0,0.00314062]
[1737498833942,0.5703066,106360.0,106330.0,1.596]
[1737498834142,0.6337242,106340.0,106330.0,1.596]
[1737498835351,0.6337242,106340.0,106330.0,1.597]
[1737498836038,0.6347242,106340.0,106330.0,1.606]
[1737498836841,0.6347242,106340.0,106330.0,1.608]
[1737498837652,0.64385647,106340.0,106330.0,1.608]
[1737498838748,0.75597036,106340.0,106330.0,1.608]
[1737498841247,0.75597036,106340.0,106330.0,1.607]
[1737498842044,0.75497036,106340.0,106330.0,1.603]
[1737498842450,0.78299884,106340.0,106330.0,1.603]
[1737498844441,0.78299884,106340.0,106330.0,1.601]
[1737498844646,0.78299884,106340.0,106330.0,1.602]
[1737498845053,0.78299884,106340.0,106330.0,1.597]
[1737498845245,0.78299884,106340.0,106330.0,1.599]
[1737498845956,0.95109638,106340.0,106330.0,1.599]
[1737498846454,0.95109638,106340.0,106330.0,1.598]
[1737498846647,0.95109638,106340.0,106330.0,1.599]
[1737498848950,0.78299884,106340.0,106330.0,1.599]
[1737498851452,0.78299884,106340.0,106330.0,0.099]
[1737498854760,0.78299884,106340.0,106330.0,0.09937887]
[1737498856056,0.45015401,106340.0,106330.0,0.09937887]
[1737498857456,0.81095401,106340.0,106330.0,0.09937887]
[1737498862158,0.72607681,106340.0,106330.0,0.09937887]
[1737498862372,0.81095401,106340.0,106330.0,0.09937887]
[1737498864466,0.64285647,106340.0,106330.0,0.09937887]
[1737498867668,0.66944479,106340.0,106330.0,0.09937887]
[1737498870266,0.61371203,106340.0,106330.0,0.09937887]
[1737498870569,0.66944479,106340.0,106330.0,0.09937887]
[1737498871066,0.66031252,106340.0,106330.0,0.09937887]
[1737498871370,0.60457976,106340.0,106330.0,0.09937887]
[1737498873874,0.61337979,106340.0,106330.0,0.09937887]
[1737498879774,0.80949358,106340.0,106330.0,0.09937887]
[1737498879977,0.75376082,106340.0,106330.0,0.09937887]
[1737498880278,0.80949358,106340.0,106330.0,0.09937887]
[1737498880577,0.75376082,106340.0,106330.0,0.09937887]
[1737498881780,0.80949358,106340.0,106330.0,0.09937887]
[1737498886184,0.44869358,106340.0,106330.0,0.09937887]
[1737498886878,0.44869358,106340.0,106330.0,0.46017887]
[1737498888978,0.25257979,106340.0,106330.0,0.46017887]
[1737498889173,0.19684703,106340.0,106330.0,0.46017887]
[1737498889381,0.19684703,106340.0,106330.0,0.69339538]
[1737498890183,0.19684703,106340.0,106330.0,2.19339538]
[1737498890373,0.42038446,106350.0,106340.0,0.188046]
[1737498890577,0.42038446,106350.0,106340.0,0.64973127]
[1737498892890,0.42138446,106350.0,106340.0,0.64973127]
[1737498893079,0.61041346,106350.0,106340.0,0.64973127]
[1737498894289,0.61041346,106350.0,106340.0,0.60457876]
[1737498895488,0.61041346,106350.0,106340.0,2.10457876]
[1737498895687,0.61041346,106350.0,106340.0,2.16031152]
[1737498895879,0.61041346,106350.0,106340.0,2.20534757]
[1737498896080,0.42238446,106350.0,106340.0,2.20534757]
[1737498896390,0.25214631,106360.0,106350.0,0.188029]
[1737498896586,0.25214631,106360.0,106350.0,0.66626176]
[1737498897387,0.30887609,106360.0,106350.0,0.66626176]
[1737498897578,0.31087609,106360.0,106350.0,0.66626176]
[1737498898891,0.31187609,106360.0,106350.0,0.77698441]
[1737498899379,0.31087609,106360.0,106350.0,0.77698441]
[1737498900889,0.31087609,106360.0,106350.0,0.87100913]
[1737498901087,0.19647963,106370.0,106360.0,0.188011]
[1737498901288,0.19647963,106370.0,106360.0,0.72077652]
[1737498901796,0.14039822,106380.0,106370.0,0.187993]
[1737498901994,0.14039822,106380.0,106370.0,0.66702576]
[1737498903093,0.14039822,106380.0,106370.0,0.72275852]
[1737498903299,0.14639822,106380.0,106370.0,0.72275852]
[1737498903602,0.14639822,106380.0,106370.0,0.75702576]
[1737498903787,0.14639822,106380.0,106370.0,0.90676557]
[1737498904385,0.16861849,106390.0,106370.0,0.90676557]
[1737498904386,0.16861849,106390.0,106380.0,0.187976]
[1737498904694,0.16861849,106390.0,106380.0,0.68024152]
[1737498904998,0.49645328,106410.0,106380.0,0.58627257]
[1737498905184,0.49645328,106410.0,106400.0,0.60447276]
[1737498905494,0.49645328,106410.0,106400.0,0.96527276]
[1737498905695,0.49645328,106410.0,106400.0,0.99431697]
[1737498906702,0.49645328,106410.0,106400.0,2.49431697]
[1737498906885,0.50245328,106410.0,106400.0,2.49431697]
[1737498907489,0.31452828,106410.0,106400.0,2.49431697]
[1737498907691,0.50245128,106410.0,106400.0,2.49431697]
[1737498908401,0.193923,106410.0,106400.0,2.49431697]
[1737498909097,0.006,106410.0,106400.0,2.49431697]
[1737498911499,0.00014062,106420.0,106410.0,0.187923]
[1737498911805,0.00014062,106420.0,106410.0,0.77987694]
[1737498912005,1e-08,106420.0,106410.0,2.70580576]
[1737498912191,1e-08,106420.0,106410.0,2.7997863]
[1737498912503,0.16847787,106450.0,106440.0,0.18787]
[1737498912805,0.16847787,106450.0,106440.0,0.63344697]
[1737498913803,0.17247787,106450.0,106440.0,0.63344697]
[1737498914401,0.17447787,106450.0,106440.0,0.63344697]
[1737498915893,0.006,106450.0,106440.0,0.63344697]
[1737498917500,0.006,106450.0,106440.0,2.13344697]
[1737498917695,0.006,106450.0,106440.0,2.16544697]
[1737498918802,0.191852,106450.0,106440.0,0.54867]
[1737498919099,0.18787,106440.0,106430.0,0.54881462]
[1737498920003,0.18787,106440.0,106430.0,0.00014062]
[1737498920389,0.27264697,106440.0,106430.0,0.00014062]
[1737498920590,0.187887,106430.0,106420.0,2.048697]
[1737498920792,0.219087,106430.0,106420.0,1.687897]
[1737498922093,0.219087,106430.0,106420.0,1.690897]
[1737498922601,0.219087,106430.0,106420.0,1.696897]
[1737498923800,0.282187,106430.0,106420.0,1.696897]
[1737498925000,0.72776397,106430.0,106420.0,0.009]
[1737498931105,0.72776397,106430.0,106420.0,1.509]
[1737498931407,0.36696397,106430.0,106420.0,1.509]
[1737498931604,0.53987697,106430.0,106380.0,0.614373]
[1737498931800,0.187944,106400.0,106380.0,0.614373]
[1737498932107,0.08477697,106410.0,106380.0,0.614373]
[1737498932108,0.44557697,106410.0,106380.0,1.8941]
[1737498932306,0.187958,106390.0,106380.0,1.8608]
[1737498932508,0.63353497,106390.0,106380.0,1.5]
[1737498932701,0.27273497,106390.0,106380.0,1.504]
[1737498933200,0.63353497,106390.0,106380.0,1.507]
[1737498933709,0.27273497,106390.0,106380.0,1.51]
[1737498934408,0.27273497,106390.0,106380.0,0.01]
[1737498934607,0.27273497,106390.0,106380.0,0.008]
[1737498935308,0.08977697,106390.0,106370.0,1.50014062]
[1737498935508,0.27275297,106380.0,106370.0,1.50014062]
[1737498937003,0.63455297,106380.0,106370.0,1.50014062]
[1737498937197,0.27375297,106380.0,106370.0,1.50014062]
[1737498937404,0.63455297,106380.0,106370.0,1.50014062]
[1737498938013,0.27475297,106380.0,106370.0,1.50014062]
[1737498938509,0.63555297,106380.0,106370.0,1.50014062]
[1737498938701,0.27475297,106380.0,106370.0,1.50014062]
[1737498939103,0.63555297,106380.0,106370.0,1.50014062]
[1737498939514,0.27475297,106380.0,106370.0,1.50014062]
[1737498939708,0.63555297,106380.0,106370.0,1.50014062]
[1737498941513,0.27475297,106380.0,106370.0,1.50014062]
[1737498942017,0.63555297,106380.0,106370.0,1.50014062]
[1737498946924,0.27475297,106380.0,106370.0,1.50014062]
[1737498947920,0.63555297,106380.0,106370.0,1.50014062]
[1737498949114,0.27475297,106380.0,106370.0,1.50014062]
[1737498949521,0.002,106380.0,106370.0,2.13371059]
[1737498949825,0.32776439,106400.0,106380.0,0.187964]
[1737498950122,0.13982239,106400.0,106390.0,0.612458]
[1737498950617,0.13982239,106400.0,106390.0,0.69723497]
[1737498950920,0.14182239,106400.0,106390.0,0.69723497]
[1737498951221,0.09192239,106400.0,106390.0,0.69723497]
[1737498951624,0.35640787,106410.0,106400.0,0.18794]
[1737498951825,0.16847787,106410.0,106400.0,0.54874]
[1737498952918,0.001,106410.0,106400.0,0.54874]
[1737498954215,0.001,106410.0,106400.0,0.58164]
[1737498954421,0.188923,106410.0,106400.0,0.58164]
[1737498955326,0.001,106410.0,106400.0,0.58164]
[1737498955715,0.001,106410.0,106400.0,2.08164]
[1737498956125,0.001,106410.0,106400.0,2.0909038]
[1737498958725,0.001,106410.0,106400.0,1.7301038]
[1737498958920,0.188923,106410.0,106400.0,0.2301038]
[1737498963729,0.30089914,106410.0,106400.0,0.2301038]
[1737498964839,0.30089914,106410.0,106400.0,1.7301038]
[1737498967928,0.188923,106410.0,106400.0,1.7301038]
[1737498968537,0.001,106410.0,106400.0,1.7301038]
[1737498970528,0.001,106410.0,106400.0,0.67568077]
[1737498970928,0.001,106410.0,106400.0,0.77568077]
[1737498971135,0.001,106410.0,106400.0,2.27568077]
[1737498972434,0.11297614,106410.0,106400.0,2.27568077]
[1737498973535,0.11297614,106410.0,106400.0,2.1909038]
[1737498975731,0.001,106410.0,106400.0,2.1909038]
[1737498976130,0.001,106410.0,106390.0,0.39264062]
[1737498976330,0.27271697,106400.0,106390.0,0.00014062]
[1737498976531,0.66451697,106400.0,106390.0,0.00014062]
[1737498978644,0.66451697,106400.0,106390.0,0.00314062]
[1737498979132,0.21894,106400.0,106390.0,0.19109862]
[1737498979441,0.21894,106400.0,106390.0,0.55289862]
[1737498979826,0.22814774,106400.0,106390.0,0.55289862]
[1737498980233,0.22914774,106400.0,106390.0,0.18909862]
[1737498980942,0.22914774,106400.0,106390.0,0.18809862]
[1737498982230,0.22914774,106400.0,106390.0,1.68809862]
[1737498982525,0.21994,106400.0,106390.0,1.68809862]
[1737498982732,0.21994,106400.0,106390.0,2.04889862]
[1737498982933,0.52891796,106400.0,106390.0,2.04889862]
[1737498985041,0.52891796,106400.0,106390.0,2.04989862]
[1737498985235,0.52791796,106400.0,106390.0,2.04989862]
[1737498985539,0.52791796,106400.0,106390.0,2.05289862]
[1737498985745,0.35944009,106400.0,106390.0,2.05289862]
[1737498986834,0.36044009,106400.0,106390.0,2.04989862]
[1737498987035,0.36044009,106400.0,106390.0,2.04889862]
[1737498988235,0.36044009,106400.0,106390.0,2.04989862]
[1737498988435,0.35944009,106400.0,106390.0,2.05289862]
[1737498995049,0.21894,106400.0,106390.0,2.05289862]
[1737499001546,0.35944009,106400.0,106390.0,2.05289862]
[1737499004359,0.35944009,106400.0,106390.0,2.08419862]
[1737499005759,0.35944009,106400.0,106390.0,2.1398455]
[1737499008360,0.52791796,106400.0,106390.0,2.1398455]
[1737499009954,0.52791796,106400.0,106390.0,2.08419862]
[1737499010258,0.52791796,106400.0,106390.0,2.18419862]
[1737499010459,0.52791796,106400.0,106390.0,2.22931624]
[1737499012661,0.38741787,106400.0,106390.0,2.22931624]
[1737499018062,0.38741787,106400.0,106390.0,1.86851624]
[1737499018265,0.38741787,106400.0,106390.0,2.22931624]
[1737499019562,0.38741787,106400.0,106390.0,1.86851624]
[1737499019769,0.38741787,106400.0,106390.0,2.22931624]
[1737499022160,0.44306475,106400.0,106390.0,1.60414062]
[1737499022354,0.44306475,106400.0,106390.0,0.10414062]
[1737499022355,0.85951163,106400.0,106390.0,0.10414062]
[1737499022559,0.187958,106390.0,106380.0,0.39288617]
[1737499022763,0.60440488,106390.0,106380.0,0.39288617]
[1737499023856,0.66005176,106390.0,106380.0,0.31735764]
[1737499024054,0.187976,106380.0,106370.0,0.28144625]
[1737499024262,0.66006976,106380.0,106370.0,0.28096625]
[1737499024463,0.52774064,106380.0,106360.0,0.33699076]
[1737499024670,0.29928676,106370.0,106360.0,0.31519076]
[1737499024967,0.188011,106360.0,106350.0,0.69499869]
[1737499025157,0.52774064,106360.0,106340.0,0.95480715]
[1737499025357,0.66012276,106350.0,106340.0,0.95480715]
[1737499025759,0.71870876,106350.0,106340.0,0.95480715]
[1737499027453,0.97222003,106350.0,106330.0,0.00014062]
[1737499027658,0.63378588,106340.0,106330.0,0.00014062]
[1737499027858,0.63388588,106340.0,106330.0,0.00014062]
[1737499028959,0.63388588,106340.0,106330.0,0.00614062]
[1737499030360,0.188099,106310.0,106300.0,0.1]
[1737499030560,0.63383888,106310.0,106300.0,0.1]
[1737499031564,0.63383888,106310.0,106300.0,0.104]
[1737499031765,0.63483888,106310.0,106300.0,0.113]
[1737499032376,0.63493888,106310.0,106300.0,0.113]
[1737499033673,0.63483888,106310.0,106300.0,0.113]
[1737499033869,0.63483888,106310.0,106300.0,0.1733]
[1737499034071,0.63383888,106310.0,106300.0,0.1643]
[1737499034376,0.63583888,106310.0,106300.0,0.1643]
[1737499034674,0.27503888,106310.0,106300.0,0.1643]
[1737499034872,0.190099,106310.0,106300.0,0.1643]
[1737499035066,0.27503888,106310.0,106300.0,0.352417]
[1737499035269,0.27503888,106310.0,106300.0,0.713217]
[1737499035471,0.08693988,106310.0,106300.0,0.713217]
[1737499035973,0.002,106310.0,106300.0,0.713217]
[1737499036174,0.002,106310.0,106300.0,2.213217]
[1737499036384,0.27503888,106310.0,106300.0,2.0251]
[1737499036573,0.52527603,106310.0,106300.0,2.0251]
[1737499036764,0.52527603,106310.0,106300.0,1.88427934]
[1737499037174,0.52527603,106310.0,106300.0,1.88527934]
[1737499037568,0.52327603,106310.0,106300.0,1.88527934]
[1737499037769,0.52327603,106310.0,106300.0,1.88627934]
[1737499038273,0.27503888,106310.0,106300.0,0.38427934]
[1737499038472,0.27503888,106310.0,106300.0,0.57239634]
[1737499038878,0.27503888,106310.0,106300.0,2.07239634]
[1737499039181,0.27503888,106310.0,106300.0,1.688117]
[1737499039674,0.27503888,106310.0,106300.0,1.5]
[1737499039886,0.27503888,106310.0,106300.0,1.5331]
[1737499041486,0.27503888,106310.0,106300.0,0.0331]
[1737499042487,0.190099,106310.0,106300.0,1.5331]
[1737499042782,0.002,106310.0,106300.0,2.082017]
[1737499042986,0.7264445,106320.0,106310.0,0.188099]
[1737499042987,0.27152237,106320.0,106310.0,0.188099]
[1737499043578,0.27152237,106320.0,106310.0,1.688099]
[1737499044080,0.62035328,106330.0,106310.0,1.5]
[1737499044280,0.79910815,106330.0,106320.0,0.188082]
[1737499045385,0.25023715,106330.0,106320.0,0.548882]
[1737499045588,0.25523715,106330.0,106320.0,0.548882]
[1737499045773,0.20533715,106330.0,106320.0,0.548882]
[1737499045973,0.20533715,106330.0,106320.0,0.63382188]
[1737499046183,0.20533715,106330.0,106320.0,0.548882]
[1737499046593,0.007,106330.0,106320.0,0.548882]
[1737499046789,0.11135713,106340.0,106330.0,0.188064]
[1737499048394,0.11535713,106340.0,106330.0,0.548864]
[1737499048992,0.11635713,106340.0,106330.0,0.578964]
[1737499049196,0.11635713,106340.0,106330.0,2.078964]
[1737499049599,0.11635713,106340.0,106330.0,2.08825156]
[1737499050096,0.11635713,106340.0,106330.0,2.11865156]
[1737499050298,0.30440313,106340.0,106330.0,0.609364]
[1737499050893,0.19318662,106340.0,106330.0,0.609364]
[1737499055303,0.19318662,106340.0,106330.0,0.709364]
[1737499055802,0.30440313,106340.0,106330.0,0.709364]
[1737499057502,0.30440313,106340.0,106330.0,0.609364]
[1737499058407,0.30440313,106340.0,106330.0,0.641864]
[1737499061700,0.30440313,106340.0,106330.0,2.141864]
[1737499064596,0.30440313,106340.0,106330.0,2.231864]
[1737499065500,0.30440313,106340.0,106330.0,2.141864]
[1737499066901,0.19318662,106340.0,106330.0,2.141864]
[1737499067807,0.19318662,106340.0,106330.0,2.189264]
[1737499068008,0.19318662,106340.0,106330.0,2.079264]
[1737499068210,0.25958662,106340.0,106330.0,2.079264]
[1737499070209,0.3445265,106340.0,106330.0,0.3608]
[1737499070412,0.5642915,106340.0,106310.0,0.64262862]
[1737499070715,0.5642915,106340.0,106310.0,2.14262862]
[1737499070716,0.188082,106320.0,106310.0,2.14262862]
[1737499071208,0.188082,106320.0,106310.0,1.75002862]
[1737499071510,0.27302188,106320.0,106310.0,1.71862862]
[1737499071705,0.188082,106320.0,106310.0,2.07942862]
[1737499071906,0.189082,106320.0,106310.0,2.07942862]
[1737499072210,0.189082,106320.0,106310.0,1.71862862]
[1737499072415,0.549882,106320.0,106310.0,1.71862862]
[1737499072915,0.189082,106320.0,106310.0,1.71862862]
[1737499073211,0.19827512,106320.0,106310.0,2.07942862]
[1737499073706,0.36559218,106320.0,106310.0,2.07942862]
[1737499074517,0.72639218,106320.0,106310.0,1.71862862]
[1737499078409,0.72639218,106320.0,106310.0,1.53054062]
[1737499080115,0.81133206,106320.0,106310.0,1.53054062]
[1737499080617,0.81133206,106320.0,106310.0,1.52954062]
[1737499081620,0.72639218,106320.0,106310.0,1.52954062]
[1737499082111,0.81133206,106320.0,106310.0,1.52954062]
[1737499083611,0.72639218,106320.0,106310.0,1.52954062]
[1737499084419,0.8662597,106320.0,106310.0,1.52954062]
[1737499085222,0.8662597,106320.0,106310.0,1.52996585]
[1737499085918,0.92199929,106320.0,106310.0,1.52996585]
[1737499088821,0.92199929,106320.0,106310.0,0.00042523]
[1737499089123,0.95319929,106320.0,106310.0,0.00042523]
[1737499090921,0.8974597,106320.0,106310.0,0.00042523]
[1737499091124,0.95319929,106320.0,106310.0,0.00042523]
[1737499094018,1.00893888,106320.0,106310.0,0.00042523]
[1737499094209,0.188099,106310.0,106300.0,0.0015515]
[1737499094411,0.66723859,106310.0,106300.0,0.0015515]
[1737499094614,0.72297818,106310.0,106300.0,0.00014062]
[1737499095315,0.72297818,106310.0,106300.0,0.00114062]
[1737499095721,0.72297818,106310.0,106300.0,0.00314062]
[1737499097730,0.6964781,106310.0,106300.0,0.00314062]
[1737499099328,0.86379516,106310.0,106300.0,0.00314062]
[1737499103124,0.5083791,106310.0,106290.0,0.03022863]
[1737499103325,0.6338961,106300.0,106290.0,0.03022863]
[1737499104428,0.6338961,106300.0,106290.0,0.03322863]
[1737499105033,0.6338961,106300.0,106290.0,0.03922863]
[1737499106030,0.188117,106300.0,106290.0,0.03922863]
[1737499106229,0.188117,106300.0,106290.0,0.40002863]
[1737499106427,0.188117,106300.0,106290.0,1.90002863]
[1737499107026,0.2730961,106300.0,106290.0,1.90002863]
[1737499107630,0.188117,106300.0,106290.0,1.90002863]
[1737499108436,0.2730961,106300.0,106290.0,1.90002863]
[1737499109133,0.38519611,106300.0,106290.0,1.90002863]
[1737499111525,0.30827504,106310.0,106290.0,0.58998683]
[1737499111730,0.30827504,106310.0,106300.0,0.6660961]
[1737499112025,0.18822762,106320.0,106300.0,2.0230249]
[1737499112234,0.18822762,106320.0,106310.0,0.188099]
[1737499112627,0.18822762,106320.0,106310.0,0.548899]
[1737499114438,0.18822762,106320.0,106310.0,0.188099]
[1737499114936,0.18922762,106320.0,106310.0,0.580299]
[1737499115128,0.18922762,106320.0,106310.0,0.3044781]
[1737499115529,0.18922762,106320.0,106310.0,0.6652781]
[1737499116435,0.00114062,106320.0,106310.0,0.6652781]